{"text_format":"1","workbook":"xlsx","n_sheets":6,"sheets":["Einführung","Begriffe","Bemessungsregendaten, kfu","Nachweisführung","Retention","Konzentrationszeit"],"not_rendered":{"charts":0,"images":6,"macros":1,"external_links":0,"defined_names":2,"comments":3,"pivot_tables":0},"unopened":[],"bounds":{"document_bytes":16777216,"sheet_cells":100000,"rows_first":2000,"rows_last":500,"rows_between":2000,"halvings":0,"cell_chars":16384,"cell_head_chars":4096},"cells_cut":0,"cells_raw":0,"read":"whole","date_system":"1900"}

{"sheet":"Einführung","index":0,"n_rows":57,"n_cols":3,"rows_kept":57,"cut":false,"hidden":false,"merged":[[22,12,22,16],[6,0,6,11],[7,0,7,11],[10,0,10,11],[9,0,9,11],[0,0,1,11],[3,0,3,11],[4,0,4,11],[2,0,2,11],[28,0,28,11],[55,2,55,7],[56,2,56,7],[12,0,12,11],[13,0,13,11],[24,0,24,11],[25,0,25,11],[53,0,53,7],[54,2,54,7],[26,0,26,11],[15,0,15,11],[16,0,16,11],[21,0,21,11],[22,0,22,11],[18,0,18,11],[19,0,19,11]]}
["Bemessung von Anlagen zur Einleitung von Niederschlagswässern \nin Oberflächengewässer in Anlehnung an das ÖWAV-Regelblatt 35"]
[]
["© 2019 ÖWAV    V4-8.2019"]
["1. Beweggründe für die Veröffentlichung eines Excel-Worksheets für Retention und Einleitung von Niederschlagswässern"]
["Zur Unterstützung einer österreichweit einheitlichen Vorgangsweise bei der hydraulischen Bemessung von Entwässerungsanlagen stellt der ÖWAV das gegenständliche Bemessungsprogramm zur Verfügung. Die dem Bemessungsprogramm zu Grunde liegenden Methoden berücksichtigen das ÖWAV-Regelblatt 35 Behandlung von Niederschlagswässern - Einleitung in Oberflächenwässer. \nDa in vielen Fällen im Zuge der Einleitung  eine gedrosselte Einleitung erforderlich ist, wurde für Regenrückhalteräume das einfache Bemessungsverfahren nach Arbeitsblatt DWA-A 117 vom April 2006 mit aufgenommen. Ein automatischer Datenimport aus dem eHYD wurde implementiert."]
[]
["2. Voraussetzung zu Anwendung des Programms"]
["Das Projektgebiet muss kleiner sein als das Einzugsgebiet. Ab einer Projektgebietsgröße von rund 5 ha (0,05 km²) und einer Einzugsgebietsgröße von 5 km² wird empfohlen genauere Ermittlungsverfahren anzuwenden. Das Programm ist bei strömenden Fließverhältnissen anwendbar. Bei schießenden Strömungsverhältnissen ist das Programm nicht anwendbar."]
[]
["3. Vereinfachung"]
["Das Programm nimmt einen stark vereinfachten Zusammenhang zwischen der Jährlichkeit der Regenspende und der Jährlichkeit eines Hochwasserereignisses an. Somit wird bei Auswahl z.B. einer 30-jährlichen Regenspende bei allen nachfolgenden Berechnungen in diesem Programm von einem Hochwasserereignis HQ30 ausgegangen. Dies ist eine stark vereinfachte Methodik."]
[]
["4. Berechnung der Bemessungswassermenge"]
["Im Programm wird davon ausgegangen, dass das Projektgebiet außerhalb des Einzugsgebiets liegt, auch wenn dieses in der Realität komplett oder zum Teil im Einzugsgebiet liegen sollte. Da das Programm nur für kleine Einzugsgebiete und Projektgebiete geeignet ist, ist davon auszugehen, dass diese Herangehensweise im Fall eines im Einzugsgebiet (komplett oder zum Teil) enthaltenen Projektgebietes eine zusätzliche Sicherheit bewirkt."]
[]
["5. Berechnung der Konzentrationszeit"]
["Im ÖWAV Regelblatt 35 werden für die Berechnung der Konzentrationszeit 4 verschiedene Methoden angeführt (nach KREPS, nach KERBY, nach SPECHT, nach CARTER). Für die Berechnung im Programm ergibt sich die Konzentrationszeit aus der Berechnung der Konzentrationszeit mit jeder dieser Methoden, wobei aus diesen 4 Ergebnissen der Mittelwert in die weitere Berechnung einfließt. Bei der Methodik nach SPECHT wird dazu die Berechnung mit 1/2 *L sowie 1/3*L durchgeführt und der MIttelwert gebildet. Ausschließlich der Mittelwert dieser beiden Ergebnisse fließt in die Berechnung des Mittelwertes aus allen 4 Konzentrationszeiten ein."]
[]
["6. Berechnung mit vorhandenen hydrographischen Daten"]
["Wenn für das Einzugsgebiet des Projektstandortes bereits Daten vom hydrographischen Dienst vorhanden sind, kann das Programm durch Drücken des Buttons JA bei den Eingaben umgeschaltet werden. In diesem Fall sind vom Einzugsgebiet ausschließlich die Daten HQ30 und HQ1 erforderlich. Die weiteren Berechnungen beziehen sich hierauf. Die Berechnungen der Konzentrationszeit basieren in diesem Fall ausschließlich auf dem Projektgebiet.\nEin neuerliches Umschalten auf die Berechnung ohne vorhandene Daten erfolgt durch Klick auf den Button NEIN im Bereich Eingaben."]
[]
["7. Interpretation der Ergebnisse"]
["ACHTUNG! Auch wenn die zusätzliche Einleitung lt. Berechnung der neuen Wasserspiegelhöhe möglich ist (Profil ausreichend groß), muss trotzdem auf die nachfolgenden Prüfkriterien geachtet werden. Es sind zwei Prüfkriterien enthalten, Prüfkriterium I (Vergleich Einleitungsmenge zur Wasserführung) und Prüfkriterium II (Vergleich Einleitungsmenge in Bezug auf Hydraulischen Stress) zu achten, bei denen lt. Regelblatt 35 trotzdem eine Retention erforderlich sein kann. "]
[]
["8. Voraussetzungen für Anwendung des Excel-Worksheets für Retention und Einleitung von Niederschlagswässern"]
["Die Anwendung setzt die Kenntnis der relevanten Regelwerke und die Fachkunde des Planers voraus. "]
["Es ist wichtig, dass der Ordner ehyd_Regendaten im selben Ordner gespeichert wird, wie das Versickerungsprogramm selbst, da die automatische Importfunktion andernfalls die zu importierenden Daten nicht finden kann. Es ist ebenso darauf zu achten, dass der Speicherpfad des Programms <300 Zeichen aufweist, da es sonst zu Fehlermeldunge kommen kann."]
[]
["Systemskizze (Einzugsgebiet, Länge Gewässer bis zum Einleitungspunkt)"]
[]
[]
["Hinweis zur Bedienung:"]
[]
[]
[]
[]
[]
[]
[]
[]
[]
[]
[]
[]
[]
[]
[]
[]
[]
[]
[]
[]
[]
["Zusatzinformationen"]
[null,"Eingabefeld","Benutzer muss Eingabe tätigen"]
[null,"Ausgabefeld","wird automatisch berechnet"]
[null,"Kommentar","Feld enthält ein Kommentar, dieses erscheint, wenn man mit dem Mauszeiger über das entsprechende Feld fährt"]

{"sheet":"Begriffe","index":1,"n_rows":50,"n_cols":6,"rows_kept":50,"cut":false,"hidden":false,"merged":[[64,0,64,1],[64,2,64,3],[65,0,65,1],[65,2,65,3],[68,0,68,3],[66,0,66,1],[66,2,66,3],[67,0,67,1],[67,2,67,3],[71,0,71,1],[71,2,71,3],[70,0,70,1],[70,2,70,3],[69,0,69,1],[69,2,69,3],[61,0,61,1],[61,2,61,3],[62,2,62,3],[63,0,63,1],[63,2,63,3],[62,0,62,1],[60,0,60,1],[60,2,60,3],[52,0,52,3],[58,0,58,1],[56,0,56,1],[56,2,56,3],[57,0,57,1],[57,2,57,3],[58,2,58,3],[54,2,54,3],[39,0,39,5],[38,0,38,5],[41,0,41,5],[59,0,59,1],[59,2,59,3],[55,0,55,1],[55,2,55,3],[53,0,53,1],[53,2,53,3],[54,0,54,1],[42,1,42,5],[43,1,43,5],[44,1,44,5],[47,1,47,5],[50,0,50,5],[49,0,49,5],[18,0,18,3],[9,0,9,3],[10,0,10,3],[16,0,16,3],[6,0,6,3],[7,0,7,3],[8,0,8,3],[17,0,17,3],[14,0,14,3],[15,0,15,3],[34,0,34,3],[36,0,36,5],[26,0,26,3],[27,0,27,3],[28,0,28,3],[29,0,29,3],[33,0,33,3],[32,0,32,3],[0,5,1,5],[0,0,1,4],[30,0,30,3],[31,0,31,3],[23,0,23,3],[24,0,24,3],[25,0,25,3],[22,0,22,3],[19,0,19,3],[11,0,11,3],[2,0,2,3],[5,0,5,3],[12,0,12,3],[4,0,4,3],[3,0,3,3],[13,0,13,3]]}
["BEGRIFFE UND ABKÜRZUNGEN DER BERECHNUNGSPARAMETER  ",null,null,null,null,{"$f":"Einführung!A3","v":"© 2019 ÖWAV    V4-8.2019"}]
[]
["Verwendete Parameter",null,null,null,"Abkürz.","Einheit"]
["Größe Einzugsgebiet ",null,null,null,"AE","ha"]
["Größe Projektgebiet ",null,null,null,"AP","ha"]
["Länge des Gewässers bis zum Einleitungspunkt ",null,null,null,"LE","km"]
["Länge des Projektgebietes",null,null,null,"LP","km"]
["Höhenunterschied des Gewässers",null,null,null,"HE","m"]
["Höhenunterschied Projektgebiet",null,null,null,"HP","m"]
["Gefälle  Einzugsgebiet",null,null,null,"JE","%"]
["Gefälle  Projektgebiet",null,null,null,"JP","%"]
["Gefälle Gewässer",null,null,null,"J","%"]
["Rauigkeitskoeffizient  Einzugsgebiet",null,null,null,"nE","-"]
["Rauigkeitskoeffizient  Projektgebiet",null,null,null,"nP","-"]
["Abflussbeiwert Einzugsgebiet",null,null,null,"an,E","-"]
["Abflussbeiwert Projektgebiet vor Bebauung",null,null,null,"an,Pvor","-"]
["Abflussbeiwert Projektgebiet nach Bebauung",null,null,null,"an,Pnach","-"]
["Böschungsneigung orographisch rechts",null,null,null,"JB, rechts","-"]
["Böschungsneigung orographisch links",null,null,null," JB, links","-"]
["Höhe Freibord (Gewäsersohle senkrecht bis Böschungskante)",null,null,null,"hF","m"]
["Stricklerbeweiwert für Einzugsgebiet",null,null,null,"kSt,E"]
["Stricklerbeiwert für Projektsgebiet",null,null,null,"kSt,P"]
["Stricklerbeiwert für Gewässer",null,null,null,"kSt,G","-"]
["Durchflussfläche Gewässer",null,null,null,"A","m²"]
["Benetzter Umfang",null,null,null,"U","m"]
["Hydraulischer Radius ",null,null,null,"r","-"]
["Verhältniszahl aus Konzentrationszeiten Einzugsgebiet zu Projektgebiet",null,null,null,"EPV","-"]
["Konzentrationszeit",null,null,null,"tc","min"]
["Berechnungshöhe 90% (90 % der Bordkapazität = Böschungshöhe) ",null,null,null,"h90","m"]
["Wiederkehrzeit Regendaten",null,null,null,"n","-"]
["mittlerer Drosselabfluss",null,null,null,"QD","l/s"]
["mittlere Drosselabflussspende",null,null,null,"qD","l/s * ha"]
["Zuschlagsfaktor",null,null,null,"fz","-"]
["Abminderungsfaktor",null,null,null,"fa","-"]
["erforderliches Retentionsvolumen",null,null,null,"VRetention","m³"]
[]
["TABELLEN"]
[]
["Abflussbeiwert"]
[]
[]
["Rauigkeitskoeffizient der Oberfläche (n=1/kSt)"]
[0.02,"glatte undurchlässige Flächen"]
[0.1,"glatte Böden (Brache), Rasen"]
[0.2,"Getreide, Ackerland"]
[0.4,"Weide"]
[0.6,"Laubwald"]
[0.8,"Wald mit tiefgründiger Spreuschicht"]
[]
["Stricklerbeiwert"]

{"sheet":"Bemessungsregendaten, kfu","index":2,"n_rows":43,"n_cols":14,"rows_kept":43,"cut":false,"hidden":false,"merged":[[45,3,45,13],[7,0,7,13],[8,0,8,13],[9,0,11,13],[13,1,13,3],[17,0,17,1],[41,3,41,13],[26,19,26,20],[5,0,5,3],[5,4,5,10],[2,0,2,10],[3,0,3,3],[3,4,3,10],[4,0,4,3],[4,4,4,10],[25,19,25,20]]}
[null,null,null,null,null,null,null,null,null,null,null,null,null,{"$f":"Einführung!A3","v":"© 2019 ÖWAV    V4-8.2019"}]
[]
["ALLGEMEINE PROJEKTDATEN"]
["Projektbezeichnung:",null,null,null,"Testprojekt"]
["Bearbeiter:",null,null,null,"Max Mustermann"]
["Bemerkungen:",null,null,null,"Testprojekt"]
[]
["BEMESSUNGSREGENDATEN"]
["Information:"]
["Die Berechnungen, welche auf den nachfolgenden Blättern durchgeführt werden, beziehen sich auf die in diesem Blatt eingetragenen Regenreihen. Es handelt sich hierbei um die Bemessungsregendaten aus dem ehyd-System.                                                                                                                                                                                                                             Die Daten können auf der ehyd-Homepage (Link: http://ehyd.gv.at/# ) heruntergeladen werden und in weiterer Folge per Hand oder automatisch in die unten angeführte Liste eingetragen werden. Dazu müssen Sie auf der Homepage den Punkt \"Kennwerte und Bemessung\" und den Unterpunkt \"Bemessungsregen\" anklicken. Dann erscheinen die Gitterpunkte mit den Bemessungregendaten. Sie müssen auf den gewünschten Punkt klicken und die Datei als ASCII-Datei herunterladen und im Ordner \"ehyd_Regendaten\" speichern."]
[]
[]
[]
["Link:","ehyd-Regendatenbank"]
[]
[]
[]
["Gitterpunkt",null,null,2862]
[]
["DAUER","MIN",0,1,2,3,5,10,20,25,30,50,75,100]
["5 min.",5,0,6.4,8.8000000000000007,10.199999999999999,12,14.4,16.8,17.600000000000001,18.100000000000001,20,21.4,22.3]
["10 min.",10,0,8.1999999999999993,11.4,13.3,15.6,18.899999999999999,22.1,23.2,24.1,26.4,28.4,29.6]
["15 min.",15,0,9.5,13.3,15.5,18.399999999999999,22.2,26,27.3,28.2,31.1,33.4,34.9]
["20 min.",20,0,10.5,14.7,17.2,20.3,24.6,28.8,30.1,31.3,34.4,36.9,38.700000000000003]
["30 min.",30,0,12.2,17,19.899999999999999,23.5,28.4,33.4,34.9,36.200000000000003,39.799999999999997,42.7,44.8]
["45 min.",45,0,14.1,19.7,22.9,27.1,32.700000000000003,38.200000000000003,40.1,41.6,45.7,48.9,51.3]
["60 min.",60,0,15.8,21.8,25.4,29.8,35.9,42.2,44.1,45.7,50.3,53.8,56.4]
["90 min.",90,0,18.3,25.1,29.1,34.299999999999997,41.2,48.2,50.3,52.2,57.4,61.3,64.3]
["2 h",120,0,20.399999999999999,27.9,32.299999999999997,37.799999999999997,45.5,53,55.6,57.4,63.1,67.599999999999994,70.7]
["3 h",180,0,23.7,32.200000000000003,37.299999999999997,43.7,52.4,61.1,64,66.099999999999994,72.599999999999994,77.7,81.3]
["4 h",240,0,26.5,35.799999999999997,41.2,48.2,57.7,67.5,70.400000000000006,72.7,79.8,85.3,89.5]
["6 h",360,0,31.9,42.1,48,55.6,66.099999999999994,76.400000000000006,79.7,82.6,90,96,100.6]
["9 h",540,0,38.4,49.7,56.4,64.8,76.3,87.8,91.4,94.3,102.9,109.6,114.3]
["12 h",720,0,42.3,55.5,63.2,73.099999999999994,86.3,99.1,103.6,106.8,116.4,124,129.5]
["18 h",1080,0,48.7,64.2,73.2,84.6,100.1,115.6,120.6,124.7,136.1,144.5,151.1]
["1 d",1440,0,52.2,68.2,77.5,89.3,105.5,119.9,124.9,128.5,138.80000000000001,147.69999999999999,154.4]
["2 d",2880,0,61.4,79.099999999999994,89.5,102.6,120.3,138.19999999999999,143.80000000000001,148.69999999999999,161.69999999999999,172.5,180]
["3 d",4320,0,67.2,86,97,110.8,130.19999999999999,149.4,155.6,160.80000000000001,174.8,186.2,194.3]
["4 d",5760,0,71.5,91,102.5,116.8,136.9,156.80000000000001,163.19999999999999,168.5,183.2,195,203.3]
["5 d",7200,0,74.900000000000006,95,106.7,121.5,142.1,162.4,169.1,174.4,189.4,201.4,210]
["6 d",8640,0,77.8,98.3,110.2,125.3,146.30000000000001,167,173.7,179.1,194.4,206.6,215.3]
[]
[null,null,null,1,2,3,5,10,20,25,30,50,75,100]

{"sheet":"Nachweisführung","index":3,"n_rows":137,"n_cols":25,"rows_kept":137,"cut":false,"hidden":false,"merged":[[136,0,136,1],[135,0,135,1],[134,0,134,1],[125,3,125,4],[125,5,125,6],[134,3,134,6],[124,5,124,6],[125,0,125,1],[104,0,104,6],[128,5,128,6],[130,0,131,6],[118,0,118,1],[118,3,118,4],[118,5,118,6],[120,0,121,6],[127,0,127,1],[127,3,127,4],[127,5,127,6],[128,0,128,1],[128,3,128,4],[115,0,115,1],[115,3,115,4],[115,5,115,6],[123,0,123,6],[124,0,124,1],[124,3,124,4],[103,5,103,6],[109,0,109,1],[109,3,109,4],[109,5,109,6],[117,0,117,1],[117,3,117,4],[117,5,117,6],[110,0,110,1],[110,3,110,4],[110,5,110,6],[111,0,111,6],[113,0,113,6],[114,0,114,1],[114,3,114,4],[105,0,105,6],[101,13,101,14],[102,0,102,1],[102,3,102,4],[102,5,102,6],[100,0,100,6],[39,0,39,2],[77,0,77,1],[47,3,47,6],[40,3,40,4],[44,0,44,1],[54,0,54,6],[93,0,94,2],[50,13,50,14],[51,0,51,1],[51,3,51,4],[51,5,51,6],[52,0,52,1],[52,3,52,4],[47,0,47,1],[40,5,40,6],[41,5,41,6],[42,5,42,6],[43,5,43,6],[44,5,44,6],[15,0,15,1],[15,3,15,4],[15,5,15,6],[20,0,20,1],[23,0,23,1],[23,3,23,4],[101,0,101,1],[101,3,101,4],[101,5,101,6],[84,3,84,6],[85,0,85,1],[85,3,85,4],[85,5,85,6],[35,0,35,1],[38,0,38,6],[39,3,39,6],[52,5,52,6],[53,0,53,6],[58,5,58,6],[32,5,32,6],[36,0,36,1],[49,0,49,6],[50,5,50,6],[46,0,46,6],[0,0,0,1],[1,0,1,1],[2,0,2,1],[2,2,2,6],[1,2,1,6],[0,2,0,6],[8,5,8,6],[9,5,9,6],[6,0,6,6],[9,0,9,1],[9,3,9,4],[7,0,7,1],[7,3,7,4],[8,0,8,1],[8,3,8,4],[4,0,4,6],[3,4,3,6],[5,0,5,2],[7,5,7,6],[44,3,44,4],[50,3,50,4],[67,0,67,1],[67,3,67,4],[66,0,66,1],[66,3,66,4],[63,0,63,1],[63,3,63,4],[58,0,58,1],[58,3,58,4],[97,0,97,6],[64,0,64,1],[64,3,64,4],[136,3,136,4],[133,0,133,6],[59,0,59,1],[59,3,59,4],[91,0,91,6],[135,5,135,6],[77,3,77,4],[77,5,77,6],[88,0,88,6],[89,0,89,1],[69,0,70,6],[83,0,83,6],[84,0,84,2],[92,0,92,2],[92,3,92,6],[86,0,86,1],[86,3,86,4],[86,5,86,6],[114,5,114,6],[103,0,103,1],[103,3,103,4],[136,5,136,6],[59,5,59,6],[60,0,60,6],[62,0,62,6],[63,5,63,6],[64,5,64,6],[66,5,66,6],[72,0,72,6],[73,0,73,1],[98,0,98,1],[98,3,98,6],[73,3,73,4],[73,5,73,6],[74,0,74,1],[74,3,74,4],[74,5,74,6],[79,0,80,6],[67,5,67,6],[76,0,76,1],[76,3,76,4],[76,5,76,6],[135,3,135,4],[93,5,93,6],[94,5,94,6],[95,3,95,4],[95,0,95,1],[29,3,29,6],[24,0,24,1],[24,3,24,4],[25,0,25,1],[33,5,33,6],[16,0,16,1],[16,3,16,4],[16,5,16,6],[17,0,17,1],[17,3,17,4],[26,5,26,6],[26,0,26,1],[26,3,26,4],[28,0,28,6],[34,0,34,6],[22,3,22,4],[30,3,31,4],[30,5,31,6],[30,0,31,2],[29,0,29,2],[95,5,95,6],[50,0,50,1],[10,3,10,4],[24,5,24,6],[10,0,10,1],[32,0,32,1],[32,3,32,4],[33,0,33,1],[33,3,33,4],[17,5,17,6],[25,3,25,4],[23,5,23,6],[25,5,25,6],[13,0,13,6],[20,3,20,4],[21,0,21,1],[21,3,21,4],[11,0,11,1],[11,3,11,4],[11,5,11,6],[22,0,22,1],[19,0,19,6],[20,5,20,6],[14,0,14,1],[14,3,14,4],[14,5,14,6]]}
["Projektbezeichnung:",null,{"$f":"'Bemessungsregendaten, kfu'!E4","v":"Testprojekt"}]
["Bearbeiter:",null,{"$f":"'Bemessungsregendaten, kfu'!E5","v":"Max Mustermann"},null,null,null,null,null,null,null,null,null,null,null,{"$f":"'Bemessungsregendaten, kfu'!D20","v":1},{"$f":"'Bemessungsregendaten, kfu'!E20","v":2},{"$f":"'Bemessungsregendaten, kfu'!F20","v":3},{"$f":"'Bemessungsregendaten, kfu'!G20","v":5},{"$f":"'Bemessungsregendaten, kfu'!H20","v":10},{"$f":"'Bemessungsregendaten, kfu'!I20","v":20},{"$f":"'Bemessungsregendaten, kfu'!J20","v":25},{"$f":"'Bemessungsregendaten, kfu'!K20","v":30},{"$f":"'Bemessungsregendaten, kfu'!L20","v":50},{"$f":"'Bemessungsregendaten, kfu'!M20","v":75},{"$f":"'Bemessungsregendaten, kfu'!N20","v":100}]
["Bemerkungen:",null,{"$f":"'Bemessungsregendaten, kfu'!E6","v":"Testprojekt"}]
[null,null,null,null,{"$f":"Einführung!A3","v":"© 2019 ÖWAV    V4-8.2019"}]
["EINGABEN"]
["Hydrographische Daten vorhanden",null,null,{"$f":"IF(M6=\"ja\",\"ja\",\"nein\")","v":"nein"},{"$f":"IF(M6=\"nein\",\"ja\",\"nein\")","v":"ja"},null,null,null,null,null,null,null,"nein"]
["Angaben Einzugsgebiet E",null,null,"Projektgebiet P"]
["Größe des Einzugsgebietes AE:",null,42,"Mittleres Gefälle des Einzugsgebiets JE:",null,{"$f":"C10/(C9*1000)","v":3.7999999999999999E-2}]
["Länge bis zum Einleitungspunkt LE:",null,1,"Rauigkeitskoeffizient vom Einzugsgebiet nE:",null,0.04]
["Höhenunterschied HE:",null,38,"Abflussbeiwert an,E:",null,0.2]
[]
["HQ30",null,2.0099999999999998,"HQ1",null,0.75]
[]
["Angaben Projektgebiet P"]
["Größe des Projektgebietes AP:",null,1.2,"Mittleres Gefälle des Projektgebiets JP:",null,{"$f":"C17/(C16*1000)","v":5.333333333333334E-3}]
["Länge bis zum Einleitungspunkt LP:",null,0.15,"Rauigkeitskoeffizient nP:",null,3.3000000000000002E-2]
["Höhenunterschied HP:",null,0.8,"mittlerer Abflussbeiwert an,Pvor:",null,0.2]
[null,null,null,"mittlerer Abflussbeiwert an,Pnach:",null,0.8]
[null,null,null,null,null,null,null,null,null,null,"F22 und 23","Höhe"]
["Gewässer",null,null,null,null,null,null,null,null,null,"G22 und G23","Breite"]
["Sohlbreite b:",null,2,"Berechnungshöhe (90 % der Bordkapazität = Böschungshöhe) h90:",null,{"$f":"C22*0.9","v":0.9900000000000001},null,null,null,null,"Gerinne Bestand"]
["Böschungshöhe h:",null,1.1000000000000001,"Böschungsneigung JB, rechts:",null,1,1,null,null,null,"mrechts",{"$f":"G22/F22*F21","v":0.9900000000000001}]
["Gefälle des Gewässers JG:",null,2.5000000000000001E-2,"Böschungsneigung JB, links:",null,1,1,null,null,null,"mlinks",{"$f":"G23/F23*F21","v":0.9900000000000001}]
["Höhe Freibord hF:",null,0.1,"Stricklerbeiwert kst:",null,20,null,null,null,null,"Seite c",{"$f":"C21+L22+L23","v":3.9800000000000004}]
[]
["Durchflussfläche bis Berechnungshöhe A:",null,{"$f":"((C21+L24)*F21)/2","v":2.9601000000000006},null,null,null,null,null,null,null,null,null,null,null,null,null,null,null,null,null,null,null,null,null,5]
["Benetzter Umfang U:",null,{"$f":"C21+SQRT(F21^2+L22^2)+SQRT(F21^2+L23^2)","v":4.8001428534987287},"Hydraulischer Radius r:",null,{"$f":"C26/C27","v":0.61666914721974209},null,null,null,null,null,null,null,null,null,null,null,null,null,null,null,null,null,null,10]
[null,null,null,null,null,null,null,null,null,null,null,null,null,null,null,null,null,null,null,null,null,null,null,null,20]
["BERECHNUNGEN",null,null,null,null,null,null,null,null,null,null,null,null,null,null,null,null,null,null,null,null,null,null,null,30]
["Konzentrationszeit tc (Mittelung)",null,null,"Regendaten",null,null,null,null,null,null,null,null,null,null,null,null,null,null,null,null,null,null,null,null,45]
[null,null,null,"Wiederkehrzeit Regendaten [n]:",null,30,null,null,null,null,null,null,null,null,null,null,null,null,null,null,null,null,null,null,60]
[null,null,null,null,null,null,null,null,null,null,null,null,null,null,null,null,null,null,null,null,null,null,null,null,90]
["Einzugsgebiet [min] (nächstgelegene lt. ehyd):",null,{"$f":"Konzentrationszeit!F21","v":22.652575241081351},"Einzugsgebiet [mm]:",null,{"$f":"Konzentrationszeit!T29","v":32.59976186812986},null,null,null,null,null,null,null,null,null,null,null,null,null,null,null,null,null,null,120]
["Projektgebiet [min] (nächstgelegene lt. ehyd):",null,{"$f":"Konzentrationszeit!F22","v":6.3741841315936139},"Projektgebiet [mm]:",null,{"$f":"Konzentrationszeit!T30","v":19.749020957912336},null,null,null,null,null,null,null,null,null,null,null,null,null,null,null,null,null,null,180]
["Bemessungsregenspende",null,null,null,null,null,null,null,null,null,null,null,null,null,null,null,null,null,null,null,null,null,null,null,240]
["Einzugsgebiet [l/(s*ha)]:",null,{"$f":"F33/(C33*60)*10000","v":239.85324347736037},{"$f":"C33","v":22.652575241081351},{"$f":"F31","v":30},null,null,null,null,null,null,null,null,null,null,null,null,null,null,null,null,null,null,null,360]
["Projektgebiet [l/(s*ha)]:",null,{"$f":"F34/(C34*60)*10000","v":516.38035943628734},{"$f":"C34","v":6.3741841315936139},{"$f":"F31","v":30},null,null,null,null,null,null,null,null,null,null,null,null,null,null,null,null,null,null,null,540]
[null,null,null,null,null,null,null,null,null,null,null,null,null,null,null,null,null,null,null,null,null,null,null,null,720]
["BEMESSUNGSWASSERMENGE\nfür P liegt außerhalb von E",null,null,null,null,null,null,null,null,null,null,null,null,null,null,null,null,null,null,null,null,null,null,null,1080]
["Konzentrationszeit a (Einzugsgebiet abhängig)",null,null,"Konzentrationszeit b (Projektgebiet abhängig)",null,null,null,null,null,null,null,null,null,null,null,null,null,null,null,null,null,null,null,null,2880]
[null,null,null,"Verhältniszahl aus Konzentrationszeiten Einzugsgebiet zu Projektgebiet EPV",null,{"$f":"IF(M6=\"ja\",1,C34/C33)","v":0.2813889398338153}]
["Einzugsgebiet",{"$f":"F31","v":30},{"$f":"C8*F10*C36/1000","v":2.0147672452098271},"Einzugsgebiet",{"$f":"F31","v":30},{"$f":"C8*F10*F41*C37/1000","v":1.2205512638993636},null,null,null,null,null,null,null,null,null,null,null,null,null,null,null,null,null,null,4320]
["Projektgebiet",{"$f":"F31","v":30},{"$f":"C15*F18*C36/1000","v":0.23025911373826594},"Projektgebiet",{"$f":"F31","v":30},{"$f":"C15*F18*C37/1000","v":0.49572514505883586},null,null,null,null,null,null,null,null,null,null,null,null,null,null,null,null,null,null,5760]
[{"$f":"F31","v":30},null,{"$f":"C42+C43","v":2.2450263589480932},{"$f":"F31","v":30},null,{"$f":"F42+F43","v":1.7162764089581994},null,null,null,null,null,null,null,null,null,null,null,null,null,null,null,null,null,null,7200]
[{"$f":"F31","v":30},null,{"$f":"MAX(F44,C44)","v":2.2450263589480932},{"$f":"F31","v":30},null,{"$f":"C45/C42-1","v":0.11428571428571432},null,null,null,null,"Konzentrationszeit a"]
[null,null,null,null,null,null,null,null,null,null,"m rechts",{"$f":"G22/F22*C53","v":0.50645708171584936}]
["GERINNEKAPAZITÄT",null,null,null,null,null,null,null,null,null,"m links",{"$f":"G23/F23*C53","v":0.50645708171584936}]
["Abfluss bei 90 % Vollfüllung des Gerinnes",null,{"$f":"C26*F24*POWER(F27,2/3)*POWER(C23,1/2)","v":6.7817409526517363},null,null,null,null,null,null,null,"Seite c",{"$f":"C21+L46+L47","v":3.0129141634316987}]
[null,null," ",null,null,null,null,null,null,null,"Fläche ",{"$f":"((C21+L48)*C53)/2","v":1.2694129390518332}]
["WASSERSPIEGELHÖHEN",null,null,null,null,null,null,null,null,null,"Umfang ",{"$f":"C21+SQRT(C53^2+L46^2)+SQRT(C53^2+L47^2)","v":3.4324769474449059}]
[{"$f":"F31","v":30},null,{"$f":"ROUND(IF(F44>C44,F42,C42),3)","v":2.0150000000000001},{"$f":"F31","v":30},null,{"$f":"ROUND((C15*F17*IF(F44>C44,C37,C36)/1000),3)","v":5.8000000000000003E-2},null,null,null,null,"Radius",{"$f":"L49/L50","v":0.36982417026770381},null,"Wasserspiegelhöhen"]
[{"$f":"F31","v":30},null,{"$f":"ROUND(C51+F51,3)","v":2.073},{"$f":"F31","v":30},null,{"$f":"ROUND(C45,3)","v":2.2450000000000001},null,null,null,null,null,null,null,{"$f":"ROUND(L49*F24*L51^(2/3)*C23^(1/2),3)","v":2.0680000000000001},{"$f":"ROUND(C52-N52,2)","v":0}]
["Wasserspiegelhöhe alt nach Strickler",null,0.50645708171584936,"Wasserspiegelhöhe neu nach Strickler",null,0.53135970399493626,null,null,null,null,"Konzentrationszeit b"]
[{"$f":"IF(OR(O52>0,O52<0,O54>0,O54<0),\"ACHTUNG, Werte sind nicht korrekt. Bitte nochmals Wasserspiegelhöhe berechnen.\",\"Berechnung in Ordnung.\")","v":"Berechnung in Ordnung."},null,null,null,null,null,null,null,null,null,"m rechts",{"$f":"G22/F22*F53","v":0.53135970399493626},null,{"$f":"ROUND(L57*F24*L59^(2/3)*C23^(1/2),3)","v":2.2469999999999999},{"$f":"ROUND(F52-N54,2)","v":0}]
[{"$f":"IF(AND(C53>F21,C53<C22),\"Achtung der Bestandsabfluss liegt bereits über 90% der Bordkapazität.\",IF(C53>C22,\"Das Programm ist für diesen Fall nicht geeignet. Es ist eine detaillierte Berechnung notwendig.\",IF(AND(F53>F21,F53<C22),\"Achtung der neue Abfluss liegt über 90% der Bordkapazität.\",IF(F53>C22,\"Das Programm ist für diesen Fall nicht geeignet. Es ist eine detaillierte Berechnung notwendig.\",IF(A54=\"ACHTUNG, Werte sind nicht korrekt. Bitte nochmals Wasserspiegelhöhe berechnen.\",\"Bitte drücken Sie den Button Wasserspiegelhöhe berechnen.\",\"Neuer Abfluss hat in den 90% Bordkapazität Platz.\")))))","v":"Neuer Abfluss hat in den 90% Bordkapazität Platz."},null,null,null,null,null,null,null,null,null,"m links",{"$f":"G23/F23*F53","v":0.53135970399493626}]
[null,null,null,null,null,null,null,null,null,null,"Seite c",{"$f":"C21+L54+L55","v":3.0627194079898725}]
[null,null,null,null,null,null,null,null,null,null,"Fläche ",{"$f":"((C21+L56)*F53)/2","v":1.3450625430194587}]
[null,null,null,null,null,null,null,null,null,null,"Umfang ",{"$f":"C21+SQRT(F53^2+L54^2)+SQRT(F53^2+L55^2)","v":3.5029121997763841}]
["Erhöhung Wasserstand im Gewässer:",null,{"$f":"(F53-C53)*100","v":2.4902622279086906},"Reserve zur Bordkapazität mit 90% ",null,{"$f":"(F21-F53)*100","v":45.864029600506385},null,null,null,null,"Radius",{"$f":"L57/L58","v":0.38398408704201142}]
[null,null,null,"Reserve bis zur Vollfüllung Gerinne ",null,{"$f":"(C22-F53)*100","v":56.864029600506385}]
[{"$f":"IF(F59<0,\"ACHTUNG! Retention erforderlich!\",\"Einleitung ok. Keine Retention erforderlich.\")","v":"Einleitung ok. Keine Retention erforderlich."},null,null,null,null,null,null,null,null,{"$f":"IF(A61=\"Einleitung ok. Keine Retention erforderlich.\",0,1)","v":0}]
[]
["Prüfkriterium I - Vergleich Einleitungsmenge zur Wasserführung"]
["maximale Einleitmenge ",null,0.1,"Maßgebende Konzentrationszeit tc",null,{"$f":"IF(C44>F44,C33,C34)","v":22.652575241081351},null,null,null,null,{"$f":"IF(C44>F44,1,F41)","v":1}]
["Jährlichkeit Regendaten ehyd",null,1,"Regendaten ehyd für gewählte Jährlichkeit",null,{"$f":"IF(F64=Konzentrationszeit!S29,Konzentrationszeit!U29,Konzentrationszeit!U30)","v":10.950937790983829}]
[]
["Regenspende Projektgebiet:",null,{"$f":"F65/(F64*60)*10000","v":80.571691256864739},"HQ1 Einzugsgebiet ",null,{"$f":"C8*K64*F10*C67/1000","v":0.67680220655766377}]
["Q1 Projektgebiet",null,{"$f":"C15*F18*C67/1000","v":7.734882360659015E-2},"maximale Einleitmenge ",null,{"$f":"C64*F67","v":6.7680220655766385E-2}]
[]
[{"$f":"IF(C68>F68,\"Lt. Regelblatt 35 ist das Erfordernis einer Retention zu prüfen.\",\"Einleitung ohne Retention möglich.\")","v":"Lt. Regelblatt 35 ist das Erfordernis einer Retention zu prüfen."},null,null,null,null,null,null,null,null,{"$f":"IF(A70=\"Lt. Regelblatt 35 ist das Erfordernis einer Retention zu prüfen.\",1,0)","v":1}]
[]
[]
["Prüfkriterum II für Retention - Vergleich Einleitungsmenge in Bezug auf Hydraulischen Stress"]
["maximale Einleitmenge gem. Gewässerökologie",null,0.3,"Regen im Einzugsgebiet",null,{"$f":"IF(C44>F44,C33,C34)","v":22.652575241081351}]
["Jährlichkeit Regendaten ehyd",null,1,"Regendaten ehyd für gewählte Jährlichkeit",null,{"$f":"IF(F74=Konzentrationszeit!S29,Konzentrationszeit!U29,Konzentrationszeit!U30)","v":10.950937790983829}]
[]
["Regenspende Projektgebiet:",null,{"$f":"F65/(F64*60)*10000","v":80.571691256864739},"HQ1 Einzugsgebiet ",null,{"$f":"C8*K64*F10*C67/1000","v":0.67680220655766377}]
["Q1 Projektgebiet",null,{"$f":"C15*F18*C67/1000","v":7.734882360659015E-2},"maximale Einleitmenge gem. Gewässerökologie",null,{"$f":"C74*F77","v":0.20304066196729911}]
[]
[{"$f":"IF(C78>F78,\"Lt. Regelblatt 35 ist das Erfordernis einer Retention zu prüfen.\",\"Einleitung ohne Retention möglich.\")","v":"Einleitung ohne Retention möglich."},null,null,null,null,null,null,null,null,{"$f":"IF(A80=\"Lt. Regelblatt 35 ist das Erfordernis einer Retention zu prüfen.\",1,0)","v":0}]
[null,null,null,null,null,null,null,null,null,{"$f":"J61+J70+J80","v":1}]
[]
[]
["BERECHNUNGEN"]
["Konzentrationszeit tc (Mittelung)",null,null,"Regendaten"]
["Einzugsgebiet [min] (Berechnung):",null,{"$f":"Konzentrationszeit!F22","v":6.3741841315936139},"Wiederkehrzeit Regendaten [n]:",null,30]
["Projektgebiet [min] (nächstgelegene lt. ehyd):",null,{"$f":"Konzentrationszeit!F22","v":6.3741841315936139},"Projektgebiet [mm]:",null,{"$f":"Konzentrationszeit!T53","v":19.749020957912336}]
[]
["Bemessungsregenspende"]
["Projektgebiet [l/(s*ha)]:",null,{"$f":"F87/(C87*60)*10000","v":516.38035943628734},{"$f":"C87","v":6.3741841315936139},{"$f":"F86","v":30}]
[]
["BEMESSUNGSWASSERMENGE\nfür P liegt außerhalb von E"]
["Konzentrationszeit a (Einzugsgebiet abhängig)",null,null,"Konzentrationszeit b (Projektgebiet abhängig)"]
["Wird nicht berechnet, da Daten vorhanden sind.",null,null,"Einzugsgebiet",{"$f":"F86","v":30},{"$f":"C12","v":2.0099999999999998},null,null,null,null,null,null,null,"Schräge 1,12 m - Schräge"]
[null,null,null,"Projektgebiet",{"$f":"F86","v":30},{"$f":"C15*F18*C90/1000","v":0.49572514505883586},null,null,null,null,null,null,null,"Umfang ist","4,24 m"]
[{"$f":"F86","v":30},null,"-",{"$f":"F86","v":30},null,{"$f":"F94+F95","v":2.5057251450588356},null,null,null,null,null,null,null,"Radius ",0.59]
[]
["GERINNEKAPAZITÄT",null,null,null,null,null,null,null,null,null,"Konzentrationszeit a"]
["Abfluss bei 90 % Vollfüllung des Gerinnes",null,{"$f":"C26*F24*POWER(F27,2/3)*POWER(C23,1/2)","v":6.7817409526517363},null,null,null,null,null,null,null,"mrechts",{"$f":"G22/F22*C104","v":0.51529228226297363}]
[null,null," ",null,null,null,null,null,null,null,"mlinks ",{"$f":"G23/F23*C104","v":0.51529228226297363}]
["HAUPTKRITERIUM - WASSERSPIEGELHÖHEN",null,null,null,null,null,null,null,null,null,"Seite c",{"$f":"L99+L100+C21","v":3.030584564525947}]
[{"$f":"F86","v":30},null,{"$f":"ROUND(C12,3)","v":2.0099999999999998},{"$f":"F86","v":30},null,{"$f":"ROUND((C15*F17*C90/1000),3)","v":0.124},null,null,null,null,"Fläche",{"$f":"((C21+L101)*C104)/2","v":1.2961107006857313},null,"Wasserspiegelhöhen"]
[{"$f":"F86","v":30},null,{"$f":"ROUND(C102+F102,3)","v":2.1339999999999999},{"$f":"F86","v":30},null,{"$f":"ROUND(F96,3)","v":2.5059999999999998},null,null,null,null,"Umfang",{"$f":"C21+SQRT(C104^2+L99^2)+SQRT(C104^2+L100^2)","v":3.4574666683249653},null,{"$f":"ROUND(L102*F24*L104^(2/3)*C23^(1/2),3)","v":2.1309999999999998},{"$f":"ROUND(C103-N103,2)","v":0}]
["Wasserspiegelhöhe alt nach Strickler",null,0.51529228226297363,"Wasserspiegelhöhe neu nach Strickler",null,0.56589035356233053,null,null,null,null,"Hydr. Radius",{"$f":"L102/L103","v":0.37487294167138174}]
[{"$f":"IF(OR(O103>0,O103<0,O105>0,O105<0),\"ACHTUNG, Werte sind nicht korrekt. Bitte nochmals Wasserspiegelhöhe berechnen.\",\"Berechnung in Ordnung.\")","v":"Berechnung in Ordnung."},null,null,null,null,null,null,null,null,null,null,null,null,{"$f":"ROUND(L110*F24*L112^(2/3)*C23^(1/2),3)","v":2.5059999999999998},{"$f":"ROUND(F103-N105,2)","v":0}]
[{"$f":"IF(AND(C104>F21,C104<C22),\"Achtung der Bestandsabfluss liegt bereits über 90% der Bordkapazität.\",IF(C104>C22,\"Das Programm ist für diesen Fall nicht geeignet. Es ist eine detaillierte Berechnung notwendig.\",IF(AND(F104>F21,F104<C22),\"Achtung der neue Abfluss liegt über 90% der Bordkapazität.\",IF(F104>C22,\"Das Programm ist für diesen Fall nicht geeignet. Es ist eine detaillierte Berechnung notwendig.\",IF(A105=\"ACHTUNG, Werte sind nicht korrekt. Bitte nochmals Wasserspiegelhöhe berechnen.\",\"Bitte drücken Sie den Button Wasserspiegelhöhe berechnen.\",\"Neuer Abfluss hat in den 90% Bordkapazität Platz.\")))))","v":"Neuer Abfluss hat in den 90% Bordkapazität Platz."},null,null,null,null,null,null,null,null,null,"Konzentrationszeit b"]
[null,null,null,null,null,null,null,null,null,null,"mrechts",{"$f":"G22/F22*F104","v":0.56589035356233053}]
[null,null,null,null,null,null,null,null,null,null,"mlinks",{"$f":"G23/F23*F104","v":0.56589035356233053}]
[null,null,null,null,null,null,null,null,null,null,"Seite c",{"$f":"C21+L107+L108","v":3.1317807071246611}]
["Erhöhung Wasserstand im Gewässer:",null,{"$f":"(F104-C104)*100","v":5.0598071299356899},"Reserve zur Bordkapazität mit 90% ",null,{"$f":"(F21-F104)*100","v":42.41096464376696},null,null,null,null,"Fläche",{"$f":"((C21+L109)*F104)/2","v":1.4520125993795605}]
[null,null,null,"Reserve bis zur Vollfüllung Gerinne ",null,{"$f":"(C22-F104)*100","v":53.41096464376696},null,null,null,null,"Umfang",{"$f":"C21+SQRT(F104^2+L107^2)+SQRT(F104^2+L108^2)","v":3.6005796256479075}]
[{"$f":"IF(F110<0,\"ACHTUNG! Retention erforderlich!\",\"Einleitung ok. Keine Retention erforderlich.\")","v":"Einleitung ok. Keine Retention erforderlich."},null,null,null,null,null,null,null,null,{"$f":"IF(A112=\"ACHTUNG! Retention erforderlich!\",1,0)","v":0},"Hydr. Radius",{"$f":"L110/L111","v":0.40327190351144576}]
[]
["Prüfkriterium I - Vergleich Einleitungsmenge zur Wasserführung"]
["maximale Einleitmenge gem. Gewässerökologie",null,0.1,"Maßgebende Konzentrationszeit tc",null,{"$f":"C87","v":6.3741841315936139}]
["Jährlichkeit Regendaten ehyd",null,1,"Regendaten ehyd für gewählte Jährlichkeit",null,{"$f":"Konzentrationszeit!U53","v":6.8947062873737011}]
[]
["Regenspende Projektgebiet:",null,{"$f":"F116/(F115*60)*10000","v":180.27683086007616},"HQ1 Einzugsgebiet ",null,{"$f":"F12","v":0.75}]
["Q1 Projektgebiet",null,{"$f":"C15*F18*C118/1000","v":0.17306575762567311},"maximale Einleitmenge gem. Gewässerökologie",null,{"$f":"C115*F118","v":7.5000000000000011E-2}]
[]
[{"$f":"IF(C119>F119,\"Lt. Regelblatt 35 ist das Erfordernis einer Retention zu prüfen.\",\"Einleitung ohne Retention möglich.\")","v":"Lt. Regelblatt 35 ist das Erfordernis einer Retention zu prüfen."}]
[null,null,null,null,null,null,null,null,null,{"$f":"IF(A121=\"Lt. Regelblatt 35 ist das Erfordernis einer Retention zu prüfen.\",1,0)","v":1}]
[]
["Prüfkriterum II für Retention - Vergleich Einleitungsmenge in Bezug auf Hydraulischen Stress"]
["maximale Einleitmenge gem. Gewässerökologie",null,0.3,"Regen im Einzugsgebiet",null,{"$f":"C87","v":6.3741841315936139}]
["Jährlichkeit Regendaten ehyd",null,1,"Regendaten ehyd für gewählte Jährlichkeit",null,{"$f":"Konzentrationszeit!U53","v":6.8947062873737011}]
[]
["Regenspende Projektgebiet:",null,{"$f":"F126/(F125*60)*10000","v":180.27683086007616},"HQ1 Einzugsgebiet ",null,{"$f":"F12","v":0.75}]
["Q1 Projektgebiet",null,{"$f":"C15*F18*C128/1000","v":0.17306575762567311},"maximale Einleitmenge gem. Gewässerökologie",null,{"$f":"C125*F128","v":0.22499999999999998}]
[]
[{"$f":"IF(C129>F129,\"Lt. Regelblatt 35 ist das Erfordernis einer Retention zu prüfen.\",\"Einleitung ohne Retention möglich.\")","v":"Einleitung ohne Retention möglich."}]
[null,null,null,null,null,null,null,null,null,{"$f":"IF(A131=\"Lt. Regelblatt 35 ist das Erfordernis einer Retention zu prüfen.\",1,0)","v":0}]
[null,null,null,null,null,null,null,null,null,{"$f":"J112+J122+J132","v":1}]
["RETENTION"]
["maximaler Drosselabfluss",null,{"$f":"IF(AND(M6=\"ja\",J133=0),\"-\",IF(AND(M6=\"ja\",J133>0),F102,IF(AND(M6=\"nein\",J81=0),\"-\",F51)))","v":5.8000000000000003E-2},{"$f":"IF(C135=\"-\",\"Es ist keine Retention erforderlich.\",\" \")","v":" "}]
["Jährlichkeit n",null,{"$f":"IF(C135=\"-\",\"-\",Retention!C43:D43)","v":30},"Konzentrationszeit tc",null,{"$f":"IF(C135=\"-\",\"-\",Retention!C45)","v":"60 min."}]
["Maßgebliches Regenereignis \n(aus ehyd-Daten)",null,{"$f":"IF(C135=\"-\",\"-\",Retention!D45)","v":45.7},"erforderliches \nRetentionsvolumen VRetention",null,{"$f":"IF(C135=\"-\",\"-\",Retention!C44)","v":256.98816000000011}]

{"sheet":"Retention","index":4,"n_rows":45,"n_cols":17,"rows_kept":45,"cut":false,"hidden":false,"merged":[[39,0,39,1],[44,0,44,1],[47,0,51,7],[41,0,41,7],[42,0,42,1],[42,2,42,3],[43,0,43,1],[43,2,43,3],[42,4,44,7],[40,0,40,7],[24,0,24,1],[35,0,35,1],[36,0,36,1],[37,0,37,1],[38,0,38,1],[25,0,25,1],[26,0,26,1],[27,0,27,1],[29,0,29,1],[30,0,30,1],[31,0,31,1],[9,0,9,7],[28,0,28,1],[15,0,16,1],[15,2,15,3],[15,4,39,7],[16,2,16,3],[17,0,17,1],[18,0,18,1],[19,0,19,1],[20,0,20,1],[32,0,32,1],[33,0,33,1],[34,0,34,1],[21,0,21,1],[22,0,22,1],[23,0,23,1],[14,0,14,3],[14,4,14,7],[10,0,10,3],[10,5,10,6],[11,0,11,3],[11,5,11,6],[12,0,12,3],[12,5,12,6],[13,0,13,7],[0,0,0,1],[0,2,0,7],[1,0,1,1],[1,2,1,7],[2,0,2,1],[2,2,2,7],[8,1,8,3],[8,4,8,5],[3,0,3,7],[4,0,4,7],[5,0,5,7],[6,1,6,2],[6,4,6,5],[6,6,6,7],[8,6,8,7],[7,1,7,2],[7,4,7,5],[7,6,7,7]]}
["Projektbezeichnung:",null,{"$f":"'Bemessungsregendaten, kfu'!E4","v":"Testprojekt"}]
["Bearbeiter:",null,{"$f":"'Bemessungsregendaten, kfu'!E5","v":"Max Mustermann"},null,null,null,null,null,null,null,null,1]
["Bemerkungen:",null,{"$f":"'Bemessungsregendaten, kfu'!E6","v":"Testprojekt"},null,null,null,null,null,null,null,null,2]
[{"$f":"Einführung!A3","v":"© 2019 ÖWAV    V4-8.2019"},null,null,null,null,null,null,null,null,null,null,3]
["EINGABEN",null,null,null,null,null,null,null,null,null,null,5]
["Einzugsflächen",null,null,null,null,null,null,null,null,null,null,10]
["Bezeichnung Einzugsfläche","Art der Entwässerungsfläche",null,"Abflussbeiwert αn","An [m²]",null,"Teileinzugsflächen  Ared [m²]",null,null,null,null,20]
["Teilfläche 1",null,null,{"$f":"Nachweisführung!F18","v":0.8},{"$f":"Nachweisführung!C15*10000","v":12000},null,{"$f":"D8*E8","v":9600},null,null,null,null,25]
[null,"GESAMTEINZUGSFLÄCHE",null,null,{"$f":"SUM(E8:F8)","v":12000},null,{"$f":"SUM(G8:H8)","v":9600},null,null,null,null,30]
[null,null,null,null,null,null,null,null,null,null,null,50]
[{"$f":"Nachweisführung!D102","v":30},null,null,null,"QD",{"$f":"IF(Nachweisführung!C135=\"-\",\"-\",Nachweisführung!C135*1000)","v":58},null,null,null,null,null,75]
["Zuschlagsfaktor",null,null,null,"fz",1.1000000000000001,null,null,null,null,null,100]
["Abminderungsfaktor",null,null,null,"fa",0.78]
[]
["Berechnung Retentionsvolumen"]
[{"$f":"'Bemessungsregendaten, kfu'!D18","v":2862},null,"Jährlichkeit"]
[null,null,30]
["DAUER",null,"Regenhöhe qr [l/m²]","erford. Speicher-volumen Vs [m³]",null,null,null,null,null,null,null,null,"Drossel reduziert",null,"Abflussrate (Drossel)","Zufluss","Zufluss - Abfluss"]
["0 min",null,0,0,null,null,null,null,null,null,null,null,null,"MIN","m³","m³"]
["5 min.",null,{"$f":"HLOOKUP($C$17,'Bemessungsregendaten, kfu'!$D$20:$N$41,2,0)","v":18.100000000000001},{"$f":"Q21*$F$12*$F$13","v":139.13328000000001},null,null,null,null,null,null,null,null,{"$f":"F11*2/3","v":38.666666666666664},0,0,0,0]
["10 min.",null,{"$f":"HLOOKUP($C$17,'Bemessungsregendaten, kfu'!$D$20:$N$41,3,0)","v":24.1},{"$f":"Q22*$F$12*$F$13","v":178.60128000000006},null,null,null,null,null,null,null,null,null,5,{"$f":"$M$20*N21*0.06","v":11.599999999999998},{"$f":"C20*$G$9/1000","v":173.76},{"$f":"IF(P21-O21>0,P21-O21,0)","v":162.16}]
["15 min.",null,{"$f":"HLOOKUP($C$17,'Bemessungsregendaten, kfu'!$D$20:$N$41,4,0)","v":28.2},202.41936000000004,null,null,null,null,null,null,null,null,null,10,{"$f":"$M$20*N22*0.06","v":23.199999999999996},{"$f":"C21*$G$9/1000","v":231.36},{"$f":"IF(P22-O22>0,P22-O22,0)","v":208.16000000000003}]
["20 min.",null,{"$f":"HLOOKUP($C$17,'Bemessungsregendaten, kfu'!$D$20:$N$41,5,0)","v":31.3},218.00064000000006,null,null,null,null,null,null,null,null,null,15,34.799999999999997,270.72000000000003,235.92000000000002]
["30 min.",null,{"$f":"HLOOKUP($C$17,'Bemessungsregendaten, kfu'!$D$20:$N$41,6,0)","v":36.200000000000003},238.45536000000001,null,null,null,null,null,null,null,null,null,20,46.399999999999991,300.48,254.08000000000004]
["45 min.",null,{"$f":"HLOOKUP($C$17,'Bemessungsregendaten, kfu'!$D$20:$N$41,7,0)","v":41.6},253.07568000000006,null,null,null,null,null,null,null,null,null,30,69.599999999999994,347.52,277.91999999999996]
["60 min.",null,{"$f":"HLOOKUP($C$17,'Bemessungsregendaten, kfu'!$D$20:$N$41,8,0)","v":45.7},256.98816000000011,null,null,null,null,null,null,null,null,null,45,104.39999999999999,399.36,294.96000000000004]
["90 min.",null,{"$f":"HLOOKUP($C$17,'Bemessungsregendaten, kfu'!$D$20:$N$41,9,0)","v":52.2},250.81056000000007,null,null,null,null,null,null,null,null,null,60,139.19999999999999,438.72,299.52000000000004]
["2 h",null,{"$f":"HLOOKUP($C$17,'Bemessungsregendaten, kfu'!$D$20:$N$41,10,0)","v":57.4},233.92511999999999,null,null,null,null,null,null,null,null,null,90,208.79999999999998,501.12,292.32000000000005]
["3 h",null,{"$f":"HLOOKUP($C$17,'Bemessungsregendaten, kfu'!$D$20:$N$41,11,0)","v":66.099999999999994},186.15168,null,null,null,null,null,null,null,null,null,120,278.39999999999998,551.04,272.64]
["4 h",null,{"$f":"HLOOKUP($C$17,'Bemessungsregendaten, kfu'!$D$20:$N$41,12,0)","v":72.7},121.08096000000002,null,null,null,null,null,null,null,null,null,180,417.59999999999997,634.55999999999995,216.95999999999998]
["6 h",null,{"$f":"HLOOKUP($C$17,'Bemessungsregendaten, kfu'!$D$20:$N$41,13,0)","v":82.6},0,null,null,null,null,null,null,null,null,null,240,556.79999999999995,697.92,141.12]
["9 h",null,{"$f":"HLOOKUP($C$17,'Bemessungsregendaten, kfu'!$D$20:$N$41,14,0)","v":94.3},0,null,null,null,null,null,null,null,null,null,360,835.19999999999993,792.96,0]
["12 h",null,{"$f":"HLOOKUP($C$17,'Bemessungsregendaten, kfu'!$D$20:$N$41,15,0)","v":106.8},0,null,null,null,null,null,null,null,null,null,540,1252.8,905.28,0]
["18 h",null,{"$f":"HLOOKUP($C$17,'Bemessungsregendaten, kfu'!$D$20:$N$41,16,0)","v":124.7},0,null,null,null,null,null,null,null,null,null,720,1670.3999999999999,1025.28,0]
["1 d",null,{"$f":"HLOOKUP($C$17,'Bemessungsregendaten, kfu'!$D$20:$N$41,17,0)","v":128.5},0,null,null,null,null,null,null,null,null,null,1080,2505.6,1197.1199999999999,0]
["2 d",null,{"$f":"HLOOKUP($C$17,'Bemessungsregendaten, kfu'!$D$20:$N$41,18,0)","v":148.69999999999999},0,null,null,null,null,null,null,null,null,null,1440,3340.7999999999997,1233.5999999999999,0]
["3 d",null,{"$f":"HLOOKUP($C$17,'Bemessungsregendaten, kfu'!$D$20:$N$41,19,0)","v":160.80000000000001},0,null,null,null,null,null,null,null,null,null,2880,6681.5999999999995,1427.52,0]
["4 d",null,{"$f":"HLOOKUP($C$17,'Bemessungsregendaten, kfu'!$D$20:$N$41,20,0)","v":168.5},0,null,null,null,null,null,null,null,null,null,4320,10022.4,1543.68,0]
["5 d",null,{"$f":"HLOOKUP($C$17,'Bemessungsregendaten, kfu'!$D$20:$N$41,21,0)","v":174.4},0,null,null,null,null,null,null,null,null,null,5760,13363.199999999999,1617.6,0]
["6 d",null,{"$f":"HLOOKUP($C$17,'Bemessungsregendaten, kfu'!$D$20:$N$41,22,0)","v":179.1},0,null,null,null,null,null,null,null,null,null,7200,16704,1674.24,0]
[null,null,null,null,null,null,null,null,null,null,null,null,null,8640,20044.8,1719.36,0]
["ERGEBNIS / BERECHNUNG"]
["Gewählte Jährlichkeit",null,{"$f":"C17","v":30},null,{"$f":"IF(F11=\"-\",\"Es ist keine Retention nach RB35 erforderlich.\",\" \")","v":" "}]
["mindestens erforderliches Retentionsvolumen [m³]",null,{"$f":"IF(F11=\"-\",\"-\",MAX(D20:D40))","v":256.98816000000011}]
["Maßgebliches Regenereignis",null,{"$f":"IF(F11=\"-\",\"-\",IF((MAX(D20:D40)>0),(INDEX(A20:A40,MATCH(MAX(D20:D40),D20:D40,0))),\"-\"))","v":"60 min."},{"$f":"IF(F11=\"-\",\"-\",IF((MAX(D20:D40)>0),(INDEX(C20:C40,MATCH(MAX(D20:D40),D20:D40,0))),\"-\"))","v":45.7}]

{"sheet":"Konzentrationszeit","index":5,"n_rows":72,"n_cols":21,"rows_kept":72,"cut":false,"hidden":false,"merged":[[8,0,8,1],[1,7,1,9],[0,0,0,9],[3,0,3,1],[4,0,4,1],[7,0,7,1],[12,0,12,1],[20,0,20,1],[21,0,21,1],[11,0,11,1],[50,19,51,19],[32,16,32,17],[33,16,33,17],[26,19,27,19]]}
["Konzentrationszeit"]
[null,null,null,null,null,null,null,{"$f":"Einführung!A3","v":"© 2019 ÖWAV    V4-8.2019"}]
["nach Kreps: tc = 0,89 * EG0,4 – 0,15"]
["Einzugsgebiet: ",null,{"$f":"0.89*POWER((Nachweisführung!C8/100),0.4)-0.15","v":0.47905659930201971},"Stunden"]
["Projektgebiet:",null,{"$f":"0.89*POWER((Nachweisführung!C15/100),0.4)-0.15","v":1.7268721958809685E-3},"Stunden"]
[]
["nach Kerby: tc = 0,7452 * L0,47 * n0,47 * J-0,235"]
["Einzugsgebiet: ",null,{"$f":"0.7452*POWER(Nachweisführung!C9,0.47)*POWER(Nachweisführung!F9,0.47)*POWER(Nachweisführung!F8,-0.235)","v":0.35399073627068212},"Stunden"]
["Projektgebiet:",null,{"$f":"0.7452*POWER(Nachweisführung!C16,0.47)*POWER(Nachweisführung!F16,0.47)*POWER(Nachweisführung!F15,-0.235)","v":0.21032581897208172},"Stunden"]
[]
["nach Specht: tc = (1/2 bis 1/3) * L"]
["Einzugsgebiet: ",null,{"$f":"Nachweisführung!C9/2","v":0.5},"Stunden","bis",{"$f":"Nachweisführung!C9/3","v":0.33333333333333331},"Stunden","gemittelt",{"$f":"(C12+F12)/2","v":0.41666666666666663},"Stunden"]
["Projektgebiet:",null,{"$f":"Nachweisführung!C16/2","v":7.4999999999999997E-2},"Stunden","bis",{"$f":"Nachweisführung!C16/3","v":4.9999999999999996E-2},"Stunden","gemittelt",{"$f":"(C13+F13)/2","v":6.25E-2},"Stunden"]
[]
["nach Carter: tc = 0,09765 * L0,6 * J-0,3"]
["Einzugsgebiet:",null,{"$f":"0.09765*Nachweisführung!C9^0.6*Nachweisführung!F8^(-0.3)","v":0.26045768049938822},"Stunden"]
["Projektgebiet:",null,{"$f":"0.09765*Nachweisführung!C16^0.6*Nachweisführung!F15^(-0.3)","v":0.15039291760494494},"Stunden"]
[]
[]
["Median der Konzentrationszeiten"]
["Einzugsgebiet: ",null,{"$f":"AVERAGE(C4,C8,I12,C16)","v":0.3775429206846892},"Stunden","ð",{"$f":"IF(C21*60<5,5,C21*60)","v":22.652575241081351},"Minuten"]
["Projektgebiet:",null,{"$f":"AVERAGE(C5,C9,I13,C17)","v":0.1062364021932269},"Stunden","ð",{"$f":"IF(C22*60<5,5,C22*60)","v":6.3741841315936139},"Minuten"]
[]
[]
[]
[]
[null,null,null,null,null,null,null,null,null,null,null,null,null,null,null,null,null,null,null,"gesuchter Wert mm"]
[null,null,null,null,null,null,null,null,null,null,null,null,null,null,null,null,"Jährlichkeit",{"$f":"Nachweisführung!F31","v":30},null,null,"1 jährlich"]
[null,null,null,null,null,null,null,null,null,null,null,null,null,{"$f":"'Bemessungsregendaten, kfu'!B20","v":"MIN"},{"$f":"R28","v":30},1,"Konzentrationszeit 1",null,{"$f":"F21","v":22.652575241081351},{"$f":"TREND(INDIRECT(\"O\"&(MATCH(S29,N30:N50)+29)&\":O\"&MATCH(S29,N30:N50)+30),INDIRECT(\"N\"&(MATCH(S29,N30:N50)+29)&\":N\"&MATCH(S29,N30:N50)+30),S29)","v":32.59976186812986},{"$f":"TREND(INDIRECT(\"P\"&(MATCH(S29,N30:N50)+29)&\":P\"&MATCH(S29,N30:N50)+30),INDIRECT(\"N\"&(MATCH(S29,N30:N50)+29)&\":N\"&MATCH(S29,N30:N50)+30),S29)","v":10.950937790983829}]
[null,null,null,null,null,null,null,null,null,null,null,null,null,{"$f":"'Bemessungsregendaten, kfu'!B21","v":5},{"$f":"INDEX('Bemessungsregendaten, kfu'!$B$20:$N$41,MATCH(N30,'Bemessungsregendaten, kfu'!$B$20:$B$41),MATCH($R$28,'Bemessungsregendaten, kfu'!$B$20:$N$20))","v":18.100000000000001},{"$f":"'Bemessungsregendaten, kfu'!D21","v":6.4},"Konzentrationszeit 2",null,{"$f":"F22","v":6.3741841315936139},{"$f":"TREND(INDIRECT(\"O\"&(MATCH(S30,N30:N50)+29)&\":O\"&MATCH(S30,N30:N50)+30),INDIRECT(\"N\"&(MATCH(S30,N30:N50)+29)&\":N\"&MATCH(S30,N30:N50)+30),S30)","v":19.749020957912336},{"$f":"TREND(INDIRECT(\"P\"&(MATCH(S30,N30:N50)+29)&\":P\"&MATCH(S30,N30:N50)+30),INDIRECT(\"N\"&(MATCH(S30,N30:N50)+29)&\":N\"&MATCH(S30,N30:N50)+30),S30)","v":6.8947062873737011}]
[null,null,null,null,null,null,null,null,null,null,null,null,null,{"$f":"'Bemessungsregendaten, kfu'!B22","v":10},{"$f":"INDEX('Bemessungsregendaten, kfu'!$B$20:$N$41,MATCH(N31,'Bemessungsregendaten, kfu'!$B$20:$B$41),MATCH($R$28,'Bemessungsregendaten, kfu'!$B$20:$N$20))","v":24.1},{"$f":"'Bemessungsregendaten, kfu'!D22","v":8.1999999999999993}]
[null,null,null,null,null,null,null,null,null,null,null,null,null,{"$f":"'Bemessungsregendaten, kfu'!B23","v":15},{"$f":"INDEX('Bemessungsregendaten, kfu'!$B$20:$N$41,MATCH(N32,'Bemessungsregendaten, kfu'!$B$20:$B$41),MATCH($R$28,'Bemessungsregendaten, kfu'!$B$20:$N$20))","v":28.2},{"$f":"'Bemessungsregendaten, kfu'!D23","v":9.5}]
[null,null,null,null,null,null,null,null,null,null,null,null,null,{"$f":"'Bemessungsregendaten, kfu'!B24","v":20},{"$f":"INDEX('Bemessungsregendaten, kfu'!$B$20:$N$41,MATCH(N33,'Bemessungsregendaten, kfu'!$B$20:$B$41),MATCH($R$28,'Bemessungsregendaten, kfu'!$B$20:$N$20))","v":31.3},{"$f":"'Bemessungsregendaten, kfu'!D24","v":10.5}]
[null,null,null,null,null,null,null,null,null,null,null,null,null,{"$f":"'Bemessungsregendaten, kfu'!B25","v":30},{"$f":"INDEX('Bemessungsregendaten, kfu'!$B$20:$N$41,MATCH(N34,'Bemessungsregendaten, kfu'!$B$20:$B$41),MATCH($R$28,'Bemessungsregendaten, kfu'!$B$20:$N$20))","v":36.200000000000003},{"$f":"'Bemessungsregendaten, kfu'!D25","v":12.2}]
[null,null,null,null,null,null,null,null,null,null,null,null,null,{"$f":"'Bemessungsregendaten, kfu'!B26","v":45},{"$f":"INDEX('Bemessungsregendaten, kfu'!$B$20:$N$41,MATCH(N35,'Bemessungsregendaten, kfu'!$B$20:$B$41),MATCH($R$28,'Bemessungsregendaten, kfu'!$B$20:$N$20))","v":41.6},{"$f":"'Bemessungsregendaten, kfu'!D26","v":14.1}]
[null,null,null,null,null,null,null,null,null,null,null,null,null,{"$f":"'Bemessungsregendaten, kfu'!B27","v":60},{"$f":"INDEX('Bemessungsregendaten, kfu'!$B$20:$N$41,MATCH(N36,'Bemessungsregendaten, kfu'!$B$20:$B$41),MATCH($R$28,'Bemessungsregendaten, kfu'!$B$20:$N$20))","v":45.7},{"$f":"'Bemessungsregendaten, kfu'!D27","v":15.8}]
[null,null,null,null,null,null,null,null,null,null,null,null,null,{"$f":"'Bemessungsregendaten, kfu'!B28","v":90},{"$f":"INDEX('Bemessungsregendaten, kfu'!$B$20:$N$41,MATCH(N37,'Bemessungsregendaten, kfu'!$B$20:$B$41),MATCH($R$28,'Bemessungsregendaten, kfu'!$B$20:$N$20))","v":52.2},{"$f":"'Bemessungsregendaten, kfu'!D28","v":18.3}]
[null,null,null,null,null,null,null,null,null,null,null,null,null,{"$f":"'Bemessungsregendaten, kfu'!B29","v":120},{"$f":"INDEX('Bemessungsregendaten, kfu'!$B$20:$N$41,MATCH(N38,'Bemessungsregendaten, kfu'!$B$20:$B$41),MATCH($R$28,'Bemessungsregendaten, kfu'!$B$20:$N$20))","v":57.4},{"$f":"'Bemessungsregendaten, kfu'!D29","v":20.399999999999999}]
[null,null,null,null,null,null,null,null,null,null,null,null,null,{"$f":"'Bemessungsregendaten, kfu'!B30","v":180},{"$f":"INDEX('Bemessungsregendaten, kfu'!$B$20:$N$41,MATCH(N39,'Bemessungsregendaten, kfu'!$B$20:$B$41),MATCH($R$28,'Bemessungsregendaten, kfu'!$B$20:$N$20))","v":66.099999999999994},{"$f":"'Bemessungsregendaten, kfu'!D30","v":23.7}]
[null,null,null,null,null,null,null,null,null,null,null,null,null,{"$f":"'Bemessungsregendaten, kfu'!B31","v":240},{"$f":"INDEX('Bemessungsregendaten, kfu'!$B$20:$N$41,MATCH(N40,'Bemessungsregendaten, kfu'!$B$20:$B$41),MATCH($R$28,'Bemessungsregendaten, kfu'!$B$20:$N$20))","v":72.7},{"$f":"'Bemessungsregendaten, kfu'!D31","v":26.5}]
[null,null,null,null,null,null,null,null,null,null,null,null,null,{"$f":"'Bemessungsregendaten, kfu'!B32","v":360},{"$f":"INDEX('Bemessungsregendaten, kfu'!$B$20:$N$41,MATCH(N41,'Bemessungsregendaten, kfu'!$B$20:$B$41),MATCH($R$28,'Bemessungsregendaten, kfu'!$B$20:$N$20))","v":82.6},{"$f":"'Bemessungsregendaten, kfu'!D32","v":31.9}]
[null,null,null,null,null,null,null,null,null,null,null,null,null,{"$f":"'Bemessungsregendaten, kfu'!B33","v":540},{"$f":"INDEX('Bemessungsregendaten, kfu'!$B$20:$N$41,MATCH(N42,'Bemessungsregendaten, kfu'!$B$20:$B$41),MATCH($R$28,'Bemessungsregendaten, kfu'!$B$20:$N$20))","v":94.3},{"$f":"'Bemessungsregendaten, kfu'!D33","v":38.4}]
[null,null,null,null,null,null,null,null,null,null,null,null,null,{"$f":"'Bemessungsregendaten, kfu'!B34","v":720},{"$f":"INDEX('Bemessungsregendaten, kfu'!$B$20:$N$41,MATCH(N43,'Bemessungsregendaten, kfu'!$B$20:$B$41),MATCH($R$28,'Bemessungsregendaten, kfu'!$B$20:$N$20))","v":106.8},{"$f":"'Bemessungsregendaten, kfu'!D34","v":42.3}]
[null,null,null,null,null,null,null,null,null,null,null,null,null,{"$f":"'Bemessungsregendaten, kfu'!B35","v":1080},{"$f":"INDEX('Bemessungsregendaten, kfu'!$B$20:$N$41,MATCH(N44,'Bemessungsregendaten, kfu'!$B$20:$B$41),MATCH($R$28,'Bemessungsregendaten, kfu'!$B$20:$N$20))","v":124.7},{"$f":"'Bemessungsregendaten, kfu'!D35","v":48.7}]
[null,null,null,null,null,null,null,null,null,null,null,null,null,{"$f":"'Bemessungsregendaten, kfu'!B36","v":1440},{"$f":"INDEX('Bemessungsregendaten, kfu'!$B$20:$N$41,MATCH(N45,'Bemessungsregendaten, kfu'!$B$20:$B$41),MATCH($R$28,'Bemessungsregendaten, kfu'!$B$20:$N$20))","v":128.5},{"$f":"'Bemessungsregendaten, kfu'!D36","v":52.2}]
[null,null,null,null,null,null,null,null,null,null,null,null,null,{"$f":"'Bemessungsregendaten, kfu'!B37","v":2880},{"$f":"INDEX('Bemessungsregendaten, kfu'!$B$20:$N$41,MATCH(N46,'Bemessungsregendaten, kfu'!$B$20:$B$41),MATCH($R$28,'Bemessungsregendaten, kfu'!$B$20:$N$20))","v":148.69999999999999},{"$f":"'Bemessungsregendaten, kfu'!D37","v":61.4}]
[null,null,null,null,null,null,null,null,null,null,null,null,null,{"$f":"'Bemessungsregendaten, kfu'!B38","v":4320},{"$f":"INDEX('Bemessungsregendaten, kfu'!$B$20:$N$41,MATCH(N47,'Bemessungsregendaten, kfu'!$B$20:$B$41),MATCH($R$28,'Bemessungsregendaten, kfu'!$B$20:$N$20))","v":160.80000000000001},{"$f":"'Bemessungsregendaten, kfu'!D38","v":67.2}]
[null,null,null,null,null,null,null,null,null,null,null,null,null,{"$f":"'Bemessungsregendaten, kfu'!B39","v":5760},{"$f":"INDEX('Bemessungsregendaten, kfu'!$B$20:$N$41,MATCH(N48,'Bemessungsregendaten, kfu'!$B$20:$B$41),MATCH($R$28,'Bemessungsregendaten, kfu'!$B$20:$N$20))","v":168.5},{"$f":"'Bemessungsregendaten, kfu'!D39","v":71.5}]
[null,null,null,null,null,null,null,null,null,null,null,null,null,{"$f":"'Bemessungsregendaten, kfu'!B40","v":7200},{"$f":"INDEX('Bemessungsregendaten, kfu'!$B$20:$N$41,MATCH(N49,'Bemessungsregendaten, kfu'!$B$20:$B$41),MATCH($R$28,'Bemessungsregendaten, kfu'!$B$20:$N$20))","v":174.4},{"$f":"'Bemessungsregendaten, kfu'!D40","v":74.900000000000006}]
[null,null,null,null,null,null,null,null,null,null,null,null,null,{"$f":"'Bemessungsregendaten, kfu'!B41","v":8640},{"$f":"INDEX('Bemessungsregendaten, kfu'!$B$20:$N$41,MATCH(N50,'Bemessungsregendaten, kfu'!$B$20:$B$41),MATCH($R$28,'Bemessungsregendaten, kfu'!$B$20:$N$20))","v":179.1},{"$f":"'Bemessungsregendaten, kfu'!D41","v":77.8}]
[null,null,null,null,null,null,null,null,null,null,null,null,null,{"$f":"'Bemessungsregendaten, kfu'!B20","v":"MIN"},{"$f":"R51","v":30},1,"Jährlichkeit",{"$f":"Nachweisführung!F86","v":30},null,"gesuchter Wert mm"]
[null,null,null,null,null,null,null,null,null,null,null,null,null,{"$f":"'Bemessungsregendaten, kfu'!B21","v":5},{"$f":"INDEX('Bemessungsregendaten, kfu'!$B$20:$N$41,MATCH(N52,'Bemessungsregendaten, kfu'!$B$20:$B$41),MATCH($R$51,'Bemessungsregendaten, kfu'!$B$20:$N$20))","v":18.100000000000001},{"$f":"'Bemessungsregendaten, kfu'!D21","v":6.4},"Daten vorhanden",null,null,null,"1-jährlich"]
[null,null,null,null,null,null,null,null,null,null,null,null,null,{"$f":"'Bemessungsregendaten, kfu'!B22","v":10},{"$f":"INDEX('Bemessungsregendaten, kfu'!$B$20:$N$41,MATCH(N53,'Bemessungsregendaten, kfu'!$B$20:$B$41),MATCH($R$51,'Bemessungsregendaten, kfu'!$B$20:$N$20))","v":24.1},{"$f":"'Bemessungsregendaten, kfu'!D22","v":8.1999999999999993},"Konzentrationszeit 3",null,{"$f":"F22","v":6.3741841315936139},{"$f":"TREND(INDIRECT(\"O\"&(MATCH(S53,N52:N72)+51)&\":O\"&MATCH(S53,N52:N72)+52),INDIRECT(\"N\"&(MATCH(S53,N52:N72)+51)&\":N\"&MATCH(S53,N52:N72)+52),S53)","v":19.749020957912336},{"$f":"TREND(INDIRECT(\"P\"&(MATCH(S53,N52:N72)+51)&\":P\"&MATCH(S53,N52:N72)+52),INDIRECT(\"N\"&(MATCH(S53,N52:N72)+51)&\":N\"&MATCH(S53,N52:N72)+52),S53)","v":6.8947062873737011}]
[null,null,null,null,null,null,null,null,null,null,null,null,null,{"$f":"'Bemessungsregendaten, kfu'!B23","v":15},{"$f":"INDEX('Bemessungsregendaten, kfu'!$B$20:$N$41,MATCH(N54,'Bemessungsregendaten, kfu'!$B$20:$B$41),MATCH($R$51,'Bemessungsregendaten, kfu'!$B$20:$N$20))","v":28.2},{"$f":"'Bemessungsregendaten, kfu'!D23","v":9.5}]
[null,null,null,null,null,null,null,null,null,null,null,null,null,{"$f":"'Bemessungsregendaten, kfu'!B24","v":20},{"$f":"INDEX('Bemessungsregendaten, kfu'!$B$20:$N$41,MATCH(N55,'Bemessungsregendaten, kfu'!$B$20:$B$41),MATCH($R$51,'Bemessungsregendaten, kfu'!$B$20:$N$20))","v":31.3},{"$f":"'Bemessungsregendaten, kfu'!D24","v":10.5}]
[null,null,null,null,null,null,null,null,null,null,null,null,null,{"$f":"'Bemessungsregendaten, kfu'!B25","v":30},{"$f":"INDEX('Bemessungsregendaten, kfu'!$B$20:$N$41,MATCH(N56,'Bemessungsregendaten, kfu'!$B$20:$B$41),MATCH($R$51,'Bemessungsregendaten, kfu'!$B$20:$N$20))","v":36.200000000000003},{"$f":"'Bemessungsregendaten, kfu'!D25","v":12.2}]
[null,null,null,null,null,null,null,null,null,null,null,null,null,{"$f":"'Bemessungsregendaten, kfu'!B26","v":45},{"$f":"INDEX('Bemessungsregendaten, kfu'!$B$20:$N$41,MATCH(N57,'Bemessungsregendaten, kfu'!$B$20:$B$41),MATCH($R$51,'Bemessungsregendaten, kfu'!$B$20:$N$20))","v":41.6},{"$f":"'Bemessungsregendaten, kfu'!D26","v":14.1}]
[null,null,null,null,null,null,null,null,null,null,null,null,null,{"$f":"'Bemessungsregendaten, kfu'!B27","v":60},{"$f":"INDEX('Bemessungsregendaten, kfu'!$B$20:$N$41,MATCH(N58,'Bemessungsregendaten, kfu'!$B$20:$B$41),MATCH($R$51,'Bemessungsregendaten, kfu'!$B$20:$N$20))","v":45.7},{"$f":"'Bemessungsregendaten, kfu'!D27","v":15.8}]
[null,null,null,null,null,null,null,null,null,null,null,null,null,{"$f":"'Bemessungsregendaten, kfu'!B28","v":90},{"$f":"INDEX('Bemessungsregendaten, kfu'!$B$20:$N$41,MATCH(N59,'Bemessungsregendaten, kfu'!$B$20:$B$41),MATCH($R$51,'Bemessungsregendaten, kfu'!$B$20:$N$20))","v":52.2},{"$f":"'Bemessungsregendaten, kfu'!D28","v":18.3}]
[null,null,null,null,null,null,null,null,null,null,null,null,null,{"$f":"'Bemessungsregendaten, kfu'!B29","v":120},{"$f":"INDEX('Bemessungsregendaten, kfu'!$B$20:$N$41,MATCH(N60,'Bemessungsregendaten, kfu'!$B$20:$B$41),MATCH($R$51,'Bemessungsregendaten, kfu'!$B$20:$N$20))","v":57.4},{"$f":"'Bemessungsregendaten, kfu'!D29","v":20.399999999999999}]
[null,null,null,null,null,null,null,null,null,null,null,null,null,{"$f":"'Bemessungsregendaten, kfu'!B30","v":180},{"$f":"INDEX('Bemessungsregendaten, kfu'!$B$20:$N$41,MATCH(N61,'Bemessungsregendaten, kfu'!$B$20:$B$41),MATCH($R$51,'Bemessungsregendaten, kfu'!$B$20:$N$20))","v":66.099999999999994},{"$f":"'Bemessungsregendaten, kfu'!D30","v":23.7}]
[null,null,null,null,null,null,null,null,null,null,null,null,null,{"$f":"'Bemessungsregendaten, kfu'!B31","v":240},{"$f":"INDEX('Bemessungsregendaten, kfu'!$B$20:$N$41,MATCH(N62,'Bemessungsregendaten, kfu'!$B$20:$B$41),MATCH($R$51,'Bemessungsregendaten, kfu'!$B$20:$N$20))","v":72.7},{"$f":"'Bemessungsregendaten, kfu'!D31","v":26.5}]
[null,null,null,null,null,null,null,null,null,null,null,null,null,{"$f":"'Bemessungsregendaten, kfu'!B32","v":360},{"$f":"INDEX('Bemessungsregendaten, kfu'!$B$20:$N$41,MATCH(N63,'Bemessungsregendaten, kfu'!$B$20:$B$41),MATCH($R$51,'Bemessungsregendaten, kfu'!$B$20:$N$20))","v":82.6},{"$f":"'Bemessungsregendaten, kfu'!D32","v":31.9}]
[null,null,null,null,null,null,null,null,null,null,null,null,null,{"$f":"'Bemessungsregendaten, kfu'!B33","v":540},{"$f":"INDEX('Bemessungsregendaten, kfu'!$B$20:$N$41,MATCH(N64,'Bemessungsregendaten, kfu'!$B$20:$B$41),MATCH($R$51,'Bemessungsregendaten, kfu'!$B$20:$N$20))","v":94.3},{"$f":"'Bemessungsregendaten, kfu'!D33","v":38.4}]
[null,null,null,null,null,null,null,null,null,null,null,null,null,{"$f":"'Bemessungsregendaten, kfu'!B34","v":720},{"$f":"INDEX('Bemessungsregendaten, kfu'!$B$20:$N$41,MATCH(N65,'Bemessungsregendaten, kfu'!$B$20:$B$41),MATCH($R$51,'Bemessungsregendaten, kfu'!$B$20:$N$20))","v":106.8},{"$f":"'Bemessungsregendaten, kfu'!D34","v":42.3}]
[null,null,null,null,null,null,null,null,null,null,null,null,null,{"$f":"'Bemessungsregendaten, kfu'!B35","v":1080},{"$f":"INDEX('Bemessungsregendaten, kfu'!$B$20:$N$41,MATCH(N66,'Bemessungsregendaten, kfu'!$B$20:$B$41),MATCH($R$51,'Bemessungsregendaten, kfu'!$B$20:$N$20))","v":124.7},{"$f":"'Bemessungsregendaten, kfu'!D35","v":48.7}]
[null,null,null,null,null,null,null,null,null,null,null,null,null,{"$f":"'Bemessungsregendaten, kfu'!B36","v":1440},{"$f":"INDEX('Bemessungsregendaten, kfu'!$B$20:$N$41,MATCH(N67,'Bemessungsregendaten, kfu'!$B$20:$B$41),MATCH($R$51,'Bemessungsregendaten, kfu'!$B$20:$N$20))","v":128.5},{"$f":"'Bemessungsregendaten, kfu'!D36","v":52.2}]
[null,null,null,null,null,null,null,null,null,null,null,null,null,{"$f":"'Bemessungsregendaten, kfu'!B37","v":2880},{"$f":"INDEX('Bemessungsregendaten, kfu'!$B$20:$N$41,MATCH(N68,'Bemessungsregendaten, kfu'!$B$20:$B$41),MATCH($R$51,'Bemessungsregendaten, kfu'!$B$20:$N$20))","v":148.69999999999999},{"$f":"'Bemessungsregendaten, kfu'!D37","v":61.4}]
[null,null,null,null,null,null,null,null,null,null,null,null,null,{"$f":"'Bemessungsregendaten, kfu'!B38","v":4320},{"$f":"INDEX('Bemessungsregendaten, kfu'!$B$20:$N$41,MATCH(N69,'Bemessungsregendaten, kfu'!$B$20:$B$41),MATCH($R$51,'Bemessungsregendaten, kfu'!$B$20:$N$20))","v":160.80000000000001},{"$f":"'Bemessungsregendaten, kfu'!D38","v":67.2}]
[null,null,null,null,null,null,null,null,null,null,null,null,null,{"$f":"'Bemessungsregendaten, kfu'!B39","v":5760},{"$f":"INDEX('Bemessungsregendaten, kfu'!$B$20:$N$41,MATCH(N70,'Bemessungsregendaten, kfu'!$B$20:$B$41),MATCH($R$51,'Bemessungsregendaten, kfu'!$B$20:$N$20))","v":168.5},{"$f":"'Bemessungsregendaten, kfu'!D39","v":71.5}]
[null,null,null,null,null,null,null,null,null,null,null,null,null,{"$f":"'Bemessungsregendaten, kfu'!B40","v":7200},{"$f":"INDEX('Bemessungsregendaten, kfu'!$B$20:$N$41,MATCH(N71,'Bemessungsregendaten, kfu'!$B$20:$B$41),MATCH($R$51,'Bemessungsregendaten, kfu'!$B$20:$N$20))","v":174.4},{"$f":"'Bemessungsregendaten, kfu'!D40","v":74.900000000000006}]
[null,null,null,null,null,null,null,null,null,null,null,null,null,{"$f":"'Bemessungsregendaten, kfu'!B41","v":8640},{"$f":"INDEX('Bemessungsregendaten, kfu'!$B$20:$N$41,MATCH(N72,'Bemessungsregendaten, kfu'!$B$20:$B$41),MATCH($R$51,'Bemessungsregendaten, kfu'!$B$20:$N$20))","v":179.1},{"$f":"'Bemessungsregendaten, kfu'!D41","v":77.8}]